bitfinex-derivatives/quotes_SOLF0:USTF0_20250524
["timestamp","ask_amount","ask_price","bid_price","bid_amount"]
[1748055811062,7.915e-05,175.26,175.25,5.7051]
[1748055811359,116.1,175.34,175.31,5.7028]
[1748055812164,116.1,175.34,175.31,5.74447951]
[1748055813661,121.8022,175.34,175.31,5.74447951]
[1748055813960,116.1,175.34,175.31,5.74447951]
[1748055815357,116.1,175.34,175.33,5.7025]
[1748055815856,19.91942162,175.39,175.31,0.04167951]
[1748055816061,14.21882162,175.39,175.31,0.04167951]
[1748055817062,5.7011,175.38,175.34,5.7019]
[1748055817262,5.7011,175.38,175.34,5.73966464]
[1748055817963,5.7011,175.38,175.35,5.7018]
[1748055818164,19.91962162,175.39,175.35,5.7018]
[1748055818658,5.7011,175.38,175.34,0.03776464]
[1748055818866,117.0944,175.41,175.34,0.03776464]
[1748055819256,117.0944,175.41,175.34,5.73966464]
[1748055819862,5.7011,175.38,175.34,5.73966464]
[1748055820162,117.0944,175.41,175.34,5.73966464]
[1748055820759,117.0944,175.41,175.34,0.03776464]
[1748055820964,121.70690979,175.41,175.34,0.03776464]
[1748055821567,5.7014,175.37,175.34,0.03776464]
[1748055822164,5.7014,175.37,175.34,5.73986464]
[1748055822561,5.7016,175.36,175.34,0.03776464]
[1748055822761,115.06,175.37,175.34,0.03776464]
[1748055822961,5.7018,175.35,175.34,0.03776464]
[1748055823568,120.7613,175.37,175.34,0.03776464]
[1748055823868,115.06,175.37,175.34,0.03776464]
[1748055824176,120.7612,175.37,175.34,0.03776464]
[1748055826471,5.7015,175.36,175.34,0.03776464]
[1748055827575,120.7613,175.37,175.34,5.73986464]
[1748055829472,120.7613,175.37,175.34,0.03776464]
[1748055830477,5.7016,175.36,175.34,0.03776464]
[1748055830772,115.06,175.37,175.34,0.03776464]
[1748055831672,120.7615,175.37,175.34,0.03776464]
[1748055832672,120.7615,175.37,175.34,5.73986464]
[1748055836371,5.7015,175.37,175.34,5.73986464]
[1748055837678,8.65216825,175.37,175.34,5.73986464]
[1748055839775,5.7015,175.37,175.34,5.73986464]
[1748055839972,8.65216825,175.37,175.34,5.73986464]
[1748055840173,2.95066825,175.37,175.35,5.7018]
[1748055840373,2.95066825,175.37,175.34,0.03776464]
[1748055840979,117.99066825,175.4,175.34,0.03776464]
[1748055841174,115.04,175.43,175.34,2.98843289]
[1748055841370,117.99066825,175.43,175.37,0.04007003]
[1748055841877,117.99066825,175.43,175.4,5.7]
[1748055842274,17.16948987,175.45,175.38,2.95066825]
[1748055842575,17.16948987,175.45,175.37,0.04007003]
[1748055842576,2.95066825,175.43,175.37,0.04007003]
[1748055842771,2.95066825,175.41,175.37,0.04007003]
[1748055843278,2.95066825,175.39,175.37,0.04007003]
[1748055843477,2.95066825,175.41,175.37,0.04007003]
[1748055843678,5.7001,175.41,175.37,5.74117003]
[1748055843981,115.04,175.42,175.37,5.74117003]
[1748055844482,5.7004,175.4,175.37,5.74117003]
[1748055845084,5.7,175.41,175.38,5.7007]
[1748055845786,5.7002,175.4,175.37,5.74117003]
[1748055845971,5.7002,175.4,175.37,0.04007003]
[1748055846282,5.7002,175.4,175.37,5.74107003]
[1748055847677,5.7002,175.4,175.37,0.04007003]
[1748055847980,5.7002,175.4,175.38,5.7008]
[1748055848184,5.7,175.41,175.38,5.7008]
[1748055848383,115.04,175.42,175.38,5.7008]
[1748055848584,5.7002,175.41,175.38,5.7008]
[1748055848786,115.04,175.42,175.37,5.74117003]
[1748055849585,5.7003,175.4,175.37,5.74117003]
[1748055852590,5.7,175.41,175.38,5.7008]
[1748055853080,115.04,175.42,175.37,0.04007003]
[1748055853280,5.7002,175.4,175.37,5.74107003]
[1748055853988,115.04,175.42,175.37,0.04007003]
[1748055854791,5.7008,175.38,175.37,0.04007003]
[1748055854988,115.04,175.42,175.37,0.04007003]
[1748055855193,114.84,175.45,175.37,0.04007003]
[1748055855491,114.84,175.45,175.39,0.03652549]
[1748055855688,114.84,175.45,175.39,5.73702549]
[1748055856390,5.6996,175.42,175.39,5.73702549]
[1748055857991,120.5388,175.45,175.42,5.6995]
[1748055858292,114.84,175.48,175.39,0.03652549]
[1748055858585,5.6985,175.46,175.42,5.6993]
[1748055858792,5.6985,175.46,175.42,5.74073142]
[1748055859191,5.6985,175.46,175.43,5.6992]
[1748055859391,120.5377,175.48,175.42,0.04143142]
[1748055860086,5.698,175.47,175.42,0.04143142]
[1748055860292,5.698,175.47,175.44,5.6987]
[1748055860996,120.5379,175.48,175.42,0.04143142]
[1748055861291,129.05882162,175.51,175.42,0.04143142]
[1748055861488,5.697,175.5,175.46,5.698]
[1748055861686,5.697,175.5,175.46,5.73563607]
[1748055861892,5.697,175.5,175.46,0.03763607]
[1748055862094,134.75552162,175.51,175.47,5.6977]
[1748055862390,134.75552162,175.51,175.46,0.03763607]
[1748055862391,129.05882162,175.51,175.46,0.03763607]
[1748055862591,5.6972,175.5,175.46,5.73563607]
[1748055862891,114.84,175.51,175.46,0.03763607]
[1748055863995,5.6979,175.47,175.46,0.03763607]
[1748055866998,114.84,175.51,175.46,0.03763607]
[1748055867496,5.6979,175.47,175.46,0.03763607]
[1748055868602,5.6977,175.48,175.46,0.03763607]
[1748055869993,5.6973,175.49,175.46,0.03763607]
[1748055870196,114.84,175.51,175.46,0.03763607]
[1748055870901,114.84,175.51,175.46,5.73563607]
[1748055871300,5.6972,175.5,175.46,5.73563607]
[1748055872203,5.6972,175.5,175.47,5.6979]
[1748055872604,5.6972,175.5,175.46,0.03763607]
[1748055872902,5.6975,175.49,175.46,0.03763607]
[1748055873403,5.6971,175.5,175.46,5.73563607]
[1748055873902,114.84,175.51,175.46,5.73563607]
[1748055874709,5.6975,175.49,175.46,5.73563607]
[1748055875005,114.84,175.51,175.46,5.73563607]
[1748055875304,5.6972,175.5,175.46,5.73563607]
[1748055875604,2.94665722,175.49,175.46,5.73563607]
[1748055876206,8.64405722,175.49,175.46,5.73563607]
[1748055876506,2.94665722,175.49,175.46,5.73563607]
[1748055876694,2.94665722,175.49,175.47,5.6979]
[1748055877004,114.84,175.51,175.47,5.6979]
[1748055877207,2.94665722,175.49,175.47,5.6979]
[1748055877903,2.94665722,175.49,175.46,5.73573607]
[1748055878106,2.94665722,175.49,175.46,0.03763607]
[1748055879503,5.697,175.5,175.47,5.6979]
[1748055879709,2.94665722,175.52,175.46,0.03763607]
[1748055879903,2.94665722,175.52,175.47,0.04091224]
[1748055880103,2.94665722,175.52,175.5,5.6969]
[1748055880408,117.58665722,175.53,175.47,0.04091224]
[1748055880707,117.58665722,175.53,175.5,5.6968]
[1748055881207,114.64,175.53,175.47,0.04091224]
[1748055881400,117.58665722,175.53,175.47,0.04091224]
[1748055881599,114.64,175.53,175.47,0.04091224]
[1748055882207,114.64,175.53,175.51,5.6966]
[1748055883004,114.64,175.53,175.5,5.6968]
[1748055883307,5.6964,175.52,175.47,0.04091224]
[1748055883496,114.64,175.53,175.47,0.04091224]
[1748055883700,4.60202514,175.51,175.47,0.04091224]
[1748055884004,5.6976,175.48,175.47,0.04091224]
[1748055885299,4.60202514,175.48,175.4,7.7402]
[1748055885497,4.60202514,175.48,175.38,1.9155]
[1748055886010,4.60202514,175.48,175.39,5.7003]
[1748055886209,4.60202514,175.48,175.38,1.9155]
[1748055886402,0.04285027,175.45,175.41,0.03607751]
[1748055886598,5.6993,175.43,175.41,0.03607751]
[1748055886799,114.68285027,175.45,175.41,0.03607751]
[1748055887411,5.699,175.44,175.41,0.03607751]
[1748055887917,120.38175027,175.45,175.41,5.73567751]
[1748055888212,0.04285027,175.45,175.41,0.03607751]
[1748055888706,0.04285027,175.45,175.44,5.6989]
[1748055889606,114.66,175.52,175.42,5.7969]
[1748055889807,114.66,175.52,175.42,69.7969]
[1748055890614,114.66,175.52,175.45,0.04320833]
[1748055890913,14.21882162,175.55,175.45,114.70320833]
[1748055891211,14.21882162,175.55,175.46,4.60202514]
[1748055891407,14.21882162,175.55,175.49,0.04095664]
[1748055892215,114.66,175.6,175.49,0.04095664]
[1748055892409,114.66,175.6,175.53,0.0363945]
[1748055893218,114.66,175.6,175.53,5.7323945]
[1748055894018,5.6949,175.57,175.53,5.7323945]
[1748055894621,114.66,175.6,175.53,5.7323945]
[1748055895619,114.66,175.6,175.54,5.6956]
[1748055895822,5.6949,175.57,175.53,0.0363945]
[1748055896121,114.62,175.56,175.53,0.0363945]
[1748055896424,5.6957,175.54,175.53,0.04260346]
[1748055897425,114.62,175.55,175.53,0.04260346]
[1748055897918,114.62,175.58,175.53,0.04260346]
[1748055898120,5.6951,175.56,175.54,0.03593843]
[1748055898321,5.6951,175.56,175.53,0.03830175]
[1748055898517,5.6951,175.56,175.53,0.03801732]
[1748055899326,5.6951,175.56,175.53,5.73391732]
[1748055901224,5.6948,175.57,175.53,5.73391732]
[1748055901928,114.62,175.58,175.54,5.6956]
[1748055902425,5.6949,175.57,175.54,5.6956]
[1748055902921,5.6949,175.57,175.53,5.73391732]
[1748055903930,5.695,175.56,175.53,5.73391732]
[1748055904934,4.60202514,175.54,175.45,14.24]
[1748055905128,115.22,175.53,175.45,14.24]
[1748055905631,5.6967,175.51,175.46,5.6982]
[1748055905832,5.6967,175.51,175.45,14.24]
[1748055906033,0.04083349,175.5,175.46,0.04233987]
[1748055906233,120.9173,175.49,175.46,0.04233987]
[1748055906534,115.22,175.49,175.46,0.04233987]
[1748055907628,120.9175,175.49,175.46,0.04233987]
[1748055908133,115.22,175.49,175.46,0.04233987]
[1748055909134,120.9173,175.49,175.46,0.04233987]
[1748055909733,5.6976,175.48,175.46,0.04233987]
[1748055910535,5.6979,175.47,175.46,0.04233987]
[1748055912234,5.6977,175.48,175.46,0.04233987]
[1748055912736,5.6979,175.47,175.46,0.04233987]
[1748055914036,5.6977,175.48,175.46,0.04233987]
[1748055914237,119.82202514,175.49,175.46,0.04233987]
[1748055915037,125.51942514,175.49,175.46,0.04233987]
[1748055915631,115.22,175.49,175.47,5.6979]
[1748055916134,115.22,175.49,175.46,0.04233987]
[1748055918239,120.9174,175.49,175.46,0.04233987]
[1748055918839,120.9174,175.49,175.46,5.74053987]
[1748055919442,115.22,175.49,175.47,5.6979]
[1748055919739,115.22,175.49,175.46,0.04233987]
[1748055920742,115.22,175.49,175.46,5.74043987]
[1748055922336,120.9173,175.49,175.46,0.04233987]
[1748055924341,120.9173,175.49,175.46,5.74053987]
[1748055924542,115.22,175.49,175.46,5.74053987]
[1748055925541,120.9173,175.49,175.46,5.74053987]
[1748055925735,115.22,175.49,175.46,5.74053987]
[1748055925930,115.22,175.49,175.46,0.04233987]
[1748055926635,115.22,175.49,175.47,5.6977]
[1748055927037,0.04083349,175.5,175.48,5.6975]
[1748055927942,0.04083349,175.5,175.47,5.6978]
[1748055928334,5.73783349,175.5,175.47,5.6978]
[1748055929242,0.04083349,175.5,175.47,5.6978]
[1748055931143,0.04083349,175.5,175.48,5.6975]
[1748055931443,0.04083349,175.5,175.46,0.04233987]
[1748055931745,0.04083349,175.5,175.47,5.6977]
[1748055932441,5.73783349,175.5,175.47,5.6977]
[1748055932640,5.73783349,175.5,175.46,5.74043987]
[1748055932836,0.04083349,175.5,175.46,0.04233987]
[1748055933149,5.73793349,175.5,175.46,5.74053987]
[1748055933438,0.04083349,175.5,175.46,0.04233987]
[1748055933644,0.04083349,175.5,175.47,5.6976]
[1748055933843,0.04083349,175.5,175.46,0.04233987]
[1748055934246,0.04083349,175.5,175.48,5.6976]
[1748055934438,0.04083349,175.5,175.46,0.04233987]
[1748055934748,0.04083349,175.5,175.48,5.6974]
[1748055935550,0.04083349,175.5,175.49,5.6973]
[1748055943358,0.04083349,175.5,175.48,5.6975]
[1748055943651,0.04083349,175.5,175.46,0.04233987]
[1748055943857,5.73793349,175.5,175.47,5.6977]
[1748055944253,0.04083349,175.5,175.46,0.04233987]
[1748055944950,0.04083349,175.5,175.47,5.6979]
[1748055945554,0.04083349,175.5,175.48,5.6975]
[1748055946958,5.73783349,175.5,175.47,5.6978]
[1748055947158,0.04083349,175.5,175.47,5.6978]
[1748055948161,0.04083349,175.5,175.48,5.6974]
[1748055953363,0.04083349,175.5,175.49,5.6973]
[1748055953557,0.04083349,175.5,175.46,0.04233987]
[1748055953558,114.68,175.55,175.46,0.04233987]
[1748055953764,114.68,175.55,175.44,65.9613]
[1748055953962,114.68,175.55,175.52,5.6961]
[1748055954169,114.68,175.55,175.46,114.68]
[1748055954668,120.3754,175.55,175.49,0.04134161]
[1748055955170,114.68,175.55,175.5,6.22550032]
[1748055955466,114.68,175.55,175.51,6.22550032]
[1748055955668,114.68,175.55,175.54,5.6956]
[1748055958173,114.68,175.55,175.53,5.73236574]
[1748055958766,114.68,175.55,175.53,0.03646574]
[1748055959274,114.68,175.55,175.53,5.73216574]
[1748055959772,114.68,175.55,175.53,0.03646574]
[1748055960974,114.68,175.55,175.53,5.73236574]
[1748055961175,114.68,175.55,175.53,0.03646574]
[1748055961570,607.02,175.58,175.53,0.03646574]
[1748055962273,492.36,175.58,175.53,0.03646574]
[1748055962478,114.66,175.59,175.53,0.03646574]
[1748055962777,114.66,175.59,175.54,5.6955]
[1748055963373,5.6949,175.57,175.53,0.03646574]
[1748055964476,129.25882162,175.63,175.54,6.23895039]
[1748055964770,115.04,175.63,175.57,0.04255747]
[1748055964975,115.04,175.63,175.58,0.04375632]
[1748055965177,4.60202514,175.61,175.58,0.04375632]
[1748055965380,4.60202514,175.61,175.53,3.8644]
[1748055965573,5.6947,175.57,175.54,6.23488608]
[1748055965774,115.04,175.59,175.54,14.24]
[1748055966274,5.6947,175.58,175.54,14.24]
[1748055966480,5.7333257,175.58,175.55,0.03640393]
[1748055967169,0.0386257,175.58,175.55,0.03640393]
[1748055968885,0.0386257,175.58,175.55,5.73160393]
[1748055969589,0.0386257,175.58,175.56,5.6949]
[1748055970190,0.0386257,175.58,175.55,5.73170393]
[1748055970491,0.0386257,175.58,175.55,0.03640393]
[1748055971490,5.7331257,175.58,175.55,0.03640393]
[1748055971688,0.0386257,175.58,175.55,0.03640393]
[1748055971989,0.0386257,175.58,175.55,5.73170393]
[1748055972483,0.0386257,175.58,175.55,0.03640393]
[1748055972889,5.7330257,175.58,175.55,0.03640393]
[1748055973996,5.6947,175.57,175.55,0.03640393]
[1748055975498,0.0386257,175.58,175.55,0.03640393]
[1748055975996,5.7330257,175.58,175.55,0.03640393]
[1748055976199,0.0386257,175.58,175.55,0.03640393]
[1748055977593,0.0386257,175.58,175.55,5.73170393]
[1748055978395,0.0386257,175.58,175.56,5.695]
[1748055979106,0.0386257,175.58,175.57,5.6947]
[1748055979694,0.0386257,175.58,175.55,0.03640393]
[1748055979893,0.0386257,175.58,175.56,5.6947]
[1748055981802,0.0386257,175.58,175.55,5.73160393]
[1748055982194,0.0386257,175.58,175.55,0.03640393]
[1748055982405,0.0386257,175.58,175.55,5.73170393]
[1748055983706,0.0386257,175.58,175.56,5.695]
[1748055984904,0.0386257,175.58,175.55,5.73160393]
[1748055985710,0.0386257,175.58,175.56,5.695]
[1748055986411,0.0386257,175.58,175.55,5.73170393]
[1748055991516,5.7330257,175.58,175.55,5.73170393]
[1748055991715,5.7330257,175.58,175.55,0.03640393]
[1748055991916,0.0386257,175.58,175.55,0.03640393]
[1748055992116,0.0386257,175.58,175.55,5.73160393]
[1748055994119,5.7330257,175.58,175.55,5.73160393]
[1748055994319,5.7330257,175.58,175.55,0.03640393]
[1748055995019,5.7330257,175.58,175.55,5.73160393]
[1748055995815,5.6948,175.57,175.55,0.03640393]
[1748055996122,0.0386257,175.58,175.55,0.03640393]
[1748055997020,5.7332257,175.58,175.55,0.03640393]
[1748055997517,0.0386257,175.58,175.55,5.73170393]
[1748055997717,0.0386257,175.58,175.55,0.03640393]
[1748055998422,5.7332257,175.58,175.55,0.03640393]
[1748055998827,5.7332257,175.58,175.55,5.73170393]
[1748055999018,0.0386257,175.58,175.56,6.24331908]
[1748055999217,0.0386257,175.58,175.55,0.03640393]
[1748055999419,0.0386257,175.58,175.56,6.24507328]
[1748055999619,0.0386257,175.58,175.56,5.695]
[1748056000930,0.0386257,175.58,175.55,0.03640393]
[1748056001230,0.0386257,175.58,175.56,6.24657925]
[1748056001425,0.0386257,175.58,175.55,0.03640393]
[1748056001624,0.0386257,175.58,175.56,6.24756801]
[1748056001930,0.0386257,175.58,175.55,0.03640393]
[1748056002229,0.0386257,175.58,175.56,6.24768599]
[1748056002530,0.0386257,175.58,175.55,0.03640393]
[1748056002828,0.0386257,175.58,175.56,6.2484825]
[1748056003033,0.0386257,175.58,175.55,0.03640393]
[1748056003221,0.0386257,175.58,175.56,6.2486243]
[1748056003424,0.0386257,175.58,175.55,5.73160393]
[1748056003630,0.0386257,175.58,175.56,6.25071027]
[1748056003822,0.0386257,175.58,175.55,5.73160393]
[1748056004022,0.0386257,175.58,175.56,6.25075935]
[1748056004217,5.7330257,175.58,175.55,0.03640393]
[1748056004429,0.0386257,175.58,175.56,6.2523665]
[1748056004630,0.0386257,175.58,175.55,0.03640393]
[1748056004829,0.0386257,175.58,175.56,6.25302288]
[1748056005022,5.7330257,175.58,175.55,0.03640393]
[1748056005220,5.7330257,175.58,175.56,6.25312415]
[1748056005432,5.7330257,175.58,175.55,0.03640393]
[1748056005928,5.7330257,175.58,175.56,6.25291239]
[1748056006129,5.7330257,175.58,175.57,6.25291239]
[1748056006328,5.7330257,175.58,175.57,6.25081522]
[1748056006728,5.695,175.56,175.55,3.93e-06]
[1748056006927,4.60488038,175.56,175.53,4.8844]
[1748056007124,5.6966,175.51,175.5,4.90792041]
[1748056007329,122.2366,175.51,175.5,4.90792041]
[1748056007531,116.54,175.51,175.5,4.90792041]
[1748056007833,0.03996027,175.52,175.5,4.90792041]
[1748056009233,0.03996027,175.52,175.49,5.73681271]
[1748056010135,0.03996027,175.52,175.49,0.03961271]
[1748056010731,5.6969,175.5,175.49,0.03961271]
[1748056010931,0.03996027,175.52,175.49,0.03961271]
[1748056011932,0.03996027,175.52,175.51,5.6966]
[1748056016634,116.54,175.53,175.52,5.6963]
[1748056018741,0.0386649,175.54,175.53,5.696]
[1748056021141,0.0386649,175.54,175.52,5.6962]
[1748056021335,0.0386649,175.54,175.5,3.8578]
[1748056022541,0.0386649,175.54,175.53,5.696]
[1748056023331,116.58,175.58,175.5,8.46268038]
[1748056023534,116.58,175.58,175.51,2.02904225]
[1748056023743,116.58,175.58,175.52,2.02904225]
[1748056024040,116.58,175.58,175.5,8.46268038]
[1748056024344,116.58,175.58,175.52,0.03793581]
[1748056024744,116.58,175.58,175.56,5.6949]
[1748056025543,116.58,175.58,175.55,5.6953]
[1748056025744,116.58,175.58,175.53,1.9543]
[1748056026343,5.6952,175.56,175.53,7.6503]
[1748056027139,5.6955,175.55,175.53,1.9543]
[1748056028748,5.6951,175.56,175.53,7.6503]
[1748056028952,116.58,175.58,175.53,7.6503]
[1748056029346,5.6949,175.57,175.53,7.6503]
[1748056029750,116.58,175.58,175.53,7.6503]
[1748056030052,5.6952,175.56,175.53,7.6503]
[1748056030751,5.6948,175.57,175.53,7.6503]
[1748056031853,122.2744,175.58,175.54,5.6956]
[1748056032750,5.6948,175.57,175.54,5.6956]
[1748056032940,5.6948,175.57,175.53,7.6501]
[1748056033851,5.6948,175.57,175.53,5.6958]
[1748056034952,5.6948,175.57,175.54,5.6956]
[1748056035652,5.6948,175.57,175.53,5.6959]
[1748056037256,5.695,175.56,175.53,5.6959]
[1748056039853,116.58,175.58,175.52,0.03793581]
[1748056040153,2.9442964,175.57,175.52,0.03793581]
[1748056040351,5.6956,175.55,175.52,0.03793581]
[1748056041353,5.6951,175.56,175.52,5.73423581]
[1748056042854,5.6954,175.55,175.52,5.73423581]
[1748056043551,5.695,175.57,175.52,5.73423581]
[1748056043757,116.58,175.58,175.52,5.73423581]
[1748056044357,5.6951,175.56,175.52,5.73423581]
[1748056045159,5.6951,175.56,175.53,5.6959]
[1748056046057,5.6951,175.56,175.52,5.73413581]
[1748056046455,5.696,175.53,175.52,0.03793581]
[1748056046651,126.5202964,175.53,175.52,0.03793581]
[1748056049758,123.576,175.53,175.52,0.03793581]
[1748056051257,123.576,175.53,175.52,3.581e-05]
[1748056054660,123.576,175.53,175.48,14.24]
[1748056054661,5.6973,175.49,175.48,14.24]
[1748056054855,116.86,175.49,175.45,8.51]
[1748056055060,5.6983,175.46,175.45,8.51]
[1748056056366,116.86,175.46,175.45,8.51]
[1748056057661,122.5583,175.46,175.45,8.51]
[1748056058969,116.86,175.46,175.45,8.51]
[1748056060871,122.5583,175.46,175.45,8.51]
[1748056061461,116.86,175.46,175.45,8.51]
[1748056062465,116.86,175.46,175.44,0.03835708]
[1748056062968,116.86,175.46,175.44,5.73725708]
[1748056064568,116.86,175.46,175.44,0.03835708]
[1748056064972,116.86,175.46,175.44,5.73705708]
[1748056065866,116.86,175.46,175.44,0.03835708]
[1748056066566,5.6986,175.45,175.44,0.03835708]
[1748056067363,122.5583,175.46,175.44,0.03835708]
[1748056067571,116.86,175.46,175.44,0.03835708]
[1748056067764,116.86,175.46,175.44,5.73725708]
[1748056067964,116.86,175.46,175.44,0.03835708]
[1748056068368,116.9,175.54,175.44,0.03835708]
[1748056068563,116.9,175.54,175.45,4.6041006]
[1748056068965,122.5959,175.54,175.51,5.6966]
[1748056069472,122.5959,175.54,175.51,5.73585374]
[1748056070063,116.9,175.54,175.51,0.03925374]
[1748056070476,5.6962,175.53,175.51,0.03925374]
[1748056070773,116.9,175.54,175.51,0.03925374]
[1748056071568,5.696,175.53,175.51,0.03925374]
[1748056071774,116.9,175.54,175.51,0.03925374]
[1748056072274,5.6963,175.52,175.51,0.03925374]
[1748056075779,5.6961,175.53,175.51,0.03925374]
[1748056075981,116.9,175.54,175.51,0.03925374]
[1748056076476,5.6963,175.52,175.51,0.03925374]
[1748056082680,5.6979,175.47,175.46,8.49]
[1748056082880,122.5779,175.47,175.46,8.49]
[1748056085486,5.6982,175.46,175.45,0.04037335]
[1748056087678,0.03942799,175.48,175.45,0.04037335]
[1748056087988,0.03942799,175.48,175.46,5.698]
[1748056088194,115.64,175.51,175.46,3.8504]
[1748056088890,115.64,175.51,175.46,5.8945]
[1748056089588,115.64,175.51,175.49,5.6971]
[1748056091095,115.64,175.54,175.5,5.6968]
[1748056091293,115.64,175.54,175.5,5.73810855]
[1748056091995,115.64,175.54,175.51,5.6966]
[1748056092291,115.64,175.54,175.5,0.04130855]
[1748056092492,115.62,175.57,175.53,5.6959]
[1748056092686,115.62,175.57,175.53,5.73213502]
[1748056093289,121.3147,175.57,175.53,5.73213502]
[1748056093489,121.3147,175.57,175.53,0.03623502]
[1748056096295,5.695,175.56,175.53,0.03623502]
[1748056100194,5.6953,175.55,175.53,0.03623502]
[1748056100695,5.6951,175.56,175.53,0.03623502]
[1748056103384,120.2241006,175.57,175.53,0.03623502]
[1748056103590,4.6041006,175.54,175.46,7.6745]
[1748056103786,115.6,175.53,175.46,5.6304]
[1748056104098,115.6,175.53,175.46,1.78]
[1748056104289,4.6041006,175.51,175.46,1.78]
[1748056104489,5.6975,175.49,175.46,1.78]
[1748056104793,121.3584129,175.49,175.46,1.82190851]
[1748056104991,5.6979,175.47,175.46,1.82190851]
[1748056105389,115.6609129,175.49,175.46,1.82190851]
[1748056105591,5.6976,175.48,175.46,1.82190851]
[1748056105889,0.0409129,175.49,175.46,1.82190851]
[1748056106095,115.6609129,175.49,175.46,1.82190851]
[1748056106295,121.3584129,175.49,175.46,1.82190851]
[1748056107295,5.6976,175.48,175.46,1.82190851]
[1748056107797,115.6609129,175.49,175.46,1.82190851]
[1748056108296,5.6978,175.48,175.46,1.82190851]
[1748056108896,5.6979,175.47,175.46,1.82190851]
[1748056114101,5.6979,175.47,175.46,0.04190851]
[1748056119406,115.6609129,175.49,175.46,0.04190851]
[1748056120601,121.3582129,175.49,175.46,0.04190851]
[1748056120803,115.6609129,175.49,175.46,0.04190851]
[1748056121305,115.6609129,175.49,175.46,5.74010851]
[1748056121699,115.6609129,175.49,175.46,0.04190851]
[1748056122699,121.3583129,175.49,175.46,0.04190851]
[1748056124306,5.6976,175.48,175.46,0.04190851]
[1748056125903,121.3583129,175.49,175.46,0.04190851]
[1748056126911,5.6977,175.48,175.46,0.04190851]
[1748056130714,121.3582129,175.49,175.46,0.04190851]
[1748056131815,5.6975,175.48,175.46,0.04190851]
[1748056133613,121.3581129,175.49,175.46,0.04190851]
[1748056138733,115.6609129,175.49,175.46,0.04190851]
[1748056139428,5.6977,175.48,175.46,0.04190851]
[1748056140126,14.21882162,175.59,175.46,0.04190851]
[1748056140332,14.21882162,175.59,175.49,4.59873259]
[1748056140535,14.21882162,175.59,175.5,121.35330732]
[1748056140833,5.6943,175.58,175.54,5.6953]
[1748056141031,14.21882162,175.59,175.5,119.3291]
[1748056141235,5.6947,175.57,175.53,0.04019777]
[1748056141933,14.21882162,175.59,175.53,0.04019777]
[1748056142635,5.6955,175.54,175.53,0.04019777]
[1748056148935,5.6955,175.54,175.53,9.777e-05]
[1748056162247,4.6350623,175.55,175.46,2.031]
[1748056162550,4.59873259,175.52,175.46,2.031]
[1748056162749,114.74,175.51,175.46,2.031]
[1748056163050,14.21882162,175.6,175.47,8.12548748]
[1748056163247,0.03675972,175.55,175.52,0.03614221]
[1748056163441,5.6955,175.54,175.52,0.03614221]
[1748056163943,5.6958,175.53,175.52,0.03614221]
[1748056166446,120.4358,175.53,175.52,0.03614221]
[1748056168950,120.4358,175.53,175.52,4.221e-05]
[1748056169151,5.6971,175.49,175.48,1.73]
[1748056178250,5.73495269,175.5,175.48,1.73]
[1748056178451,0.03855269,175.5,175.48,1.73]
[1748056179957,5.6966,175.49,175.48,1.73]
[1748056180358,5.6966,175.49,175.48,7.82411181]
[1748056181859,0.03855269,175.5,175.48,7.82411181]
[1748056182157,114.74,175.53,175.48,1.73]
[1748056182558,5.6958,175.52,175.48,1.73]
[1748056182855,114.74,175.53,175.48,1.73]
[1748056183049,0.03778729,175.52,175.49,8.12191665]
[1748056183249,115.38,175.57,175.5,6.09373585]
[1748056183458,115.38,175.57,175.51,6.09373585]
[1748056183657,5.6952,175.54,175.5,1.8909]
[1748056183858,5.6952,175.54,175.51,6.09136584]
[1748056184156,5.6952,175.54,175.5,1.8909]
[1748056184355,5.6952,175.54,175.51,6.09096185]
[1748056184553,5.6952,175.54,175.5,1.8909]
[1748056184860,5.6952,175.54,175.51,6.09044261]
[1748056185052,5.6952,175.54,175.5,7.5871]
[1748056185253,5.6952,175.54,175.51,6.09038845]
[1748056185557,115.38,175.57,175.5,1.8909]
[1748056185758,115.38,175.57,175.51,6.08976977]